[Event "Titled Tuesday Blitz March 29 Early 2022"]
[White "Baches Garcia, Guillermo"]
[Black "Aditya Mittal"]
[WhiteFideId "2209764"]
[BlackFideId "35042025"]
[WhiteElo "2507"]
[BlackElo "2682"]
[Result "0-1"]
[Round "08"]
[TimeControl "180+1"]
[Date "2022.03.30"]
[WhiteClock "0:00:18"]
[BlackClock "0:00:37"]

1. e4 {[%clk 0:03:00]}  c5 {[%clk 0:03:00]} 2. Nf3 {[%clk 0:03:01]}  d6 {[%clk 0:03:00]} 3. d4 {[%clk 0:03:01]}  cxd4 {[%clk 0:03:01]} 4. Nxd4 {[%clk 0:03:02]}  Nf6 {[%clk 0:03:02]} 5. Nc3 {[%clk 0:03:02]}  a6 {[%clk 0:03:02]} 6. Bd3 {[%clk 0:03:02]}  e5 {[%clk 0:03:02]} 7. Nde2 {[%clk 0:03:03]}  Be7 {[%clk 0:03:02]} 8. O-O {[%clk 0:03:03]}  Be6 {[%clk 0:02:59]} 9. f4 {[%clk 0:03:02]}  exf4 {[%clk 0:03:00]} 10. Nxf4 {[%clk 0:03:02]}  Nc6 {[%clk 0:03:00]} 11. Nxe6 {[%clk 0:02:54]}  fxe6 {[%clk 0:03:01]} 12. Qf3 {[%clk 0:02:52]}  Ne5 {[%clk 0:02:57]} 13. Qh3 {[%clk 0:02:52]}  Qd7 {[%clk 0:02:56]} 14. Bf4 {[%clk 0:02:44]}  Ng6 {[%clk 0:02:36]} 15. Be3 {[%clk 0:02:24]}  Rc8 {[%clk 0:02:36]} 16. Rad1 {[%clk 0:02:18]}  O-O {[%clk 0:02:35]} 17. Bd4 {[%clk 0:01:48]}  Bd8 {[%clk 0:01:01]} 18. e5 {[%clk 0:01:24]}  dxe5 {[%clk 0:01:01]} 19. Bxe5 {[%clk 0:01:10]}  Nxe5 {[%clk 0:00:51]} 20. Bxh7+ {[%clk 0:01:02]}  Nxh7 {[%clk 0:00:47]} 21. Rxd7 {[%clk 0:00:58]}  Bb6+ {[%clk 0:00:45]} 22. Rf2 {[%clk 0:00:46]}  Bxf2+ {[%clk 0:00:45]} 23. Kh1 {[%clk 0:00:34]}  Nxd7 {[%clk 0:00:46]} 24. Qxe6+ {[%clk 0:00:33]}  Rf7 {[%clk 0:00:46]} 25. Ne4 {[%clk 0:00:26]}  Nhf8 {[%clk 0:00:40]} 26. Qb3 {[%clk 0:00:21]}  Nc5 {[%clk 0:00:38]} 27. Nxc5 {[%clk 0:00:18]}  Bxc5 {[%clk 0:00:37]} 0-1


[Site "https://www.chess.com"]

[Event "Titled Tuesday Blitz March 29 Early 2022"]
[White "Borodavkin, Anatoly"]
[Black "Lakshmi C"]
[WhiteFideId "14150662"]
[BlackFideId "25035347"]
[WhiteElo "1845"]
[BlackElo "1775"]
[Result "0-1"]
[Round "08"]
[TimeControl "180+1"]
[Date "2022.03.30"]
[WhiteClock "0:00:01"]
[BlackClock "0:00:05"]

1. e4 {[%clk 0:03:00]}  e5 {[%clk 0:02:58]} 2. Nf3 {[%clk 0:03:00]}  Nc6 {[%clk 0:02:58]} 3. Bb5 {[%clk 0:03:00]}  a6 {[%clk 0:02:54]} 4. Ba4 {[%clk 0:03:00]}  d6 {[%clk 0:02:54]} 5. O-O {[%clk 0:02:59]}  Bd7 {[%clk 0:02:50]} 6. c3 {[%clk 0:02:58]}  Nge7 {[%clk 0:02:48]} 7. d4 {[%clk 0:02:56]}  b5 {[%clk 0:02:48]} 8. Bb3 {[%clk 0:02:50]}  Ng6 {[%clk 0:02:48]} 9. Ng5 {[%clk 0:02:40]}  f6 {[%clk 0:02:19]} 10. Nf7 {[%clk 0:02:37]}  Qe7 {[%clk 0:02:19]} 11. Nxh8 {[%clk 0:02:34]}  Nxh8 {[%clk 0:02:19]} 12. dxe5 {[%clk 0:02:17]}  dxe5 {[%clk 0:02:18]} 13. Be3 {[%clk 0:02:08]}  g6 {[%clk 0:01:55]} 14. a4 {[%clk 0:02:06]}  Rb8 {[%clk 0:01:50]} 15. axb5 {[%clk 0:02:04]}  axb5 {[%clk 0:01:50]} 16. Nd2 {[%clk 0:01:57]}  h5 {[%clk 0:01:45]} 17. f4 {[%clk 0:01:53]}  exf4 {[%clk 0:01:42]} 18. Bxf4 {[%clk 0:01:51]}  Bg4 {[%clk 0:01:38]} 19. Nf3 {[%clk 0:01:39]}  g5 {[%clk 0:01:17]} 20. Bg3 {[%clk 0:01:21]}  h4 {[%clk 0:01:14]} 21. Bf2 {[%clk 0:01:22]}  Ng6 {[%clk 0:01:13]} 22. Qd5 {[%clk 0:01:15]}  Bd7 {[%clk 0:01:06]} 23. Rfe1 {[%clk 0:01:05]}  Nf4 {[%clk 0:00:48]} 24. Qd2 {[%clk 0:00:56]}  Rd8 {[%clk 0:00:47]} 25. Nd4 {[%clk 0:00:50]}  Ne5 {[%clk 0:00:45]} 26. Rad1 {[%clk 0:00:34]}  h3 {[%clk 0:00:20]} 27. g3 {[%clk 0:00:19]}  Ne6 {[%clk 0:00:10]} 28. Bxe6 {[%clk 0:00:17]}  Bxe6 {[%clk 0:00:09]} 29. Re3 {[%clk 0:00:17]}  c5 {[%clk 0:00:08]} 30. Qe2 {[%clk 0:00:15]}  cxd4 {[%clk 0:00:08]} 31. Qxb5+ {[%clk 0:00:15]}  Bd7 {[%clk 0:00:09]} 32. Qe2 {[%clk 0:00:11]}  dxe3 {[%clk 0:00:09]} 33. Bxe3 {[%clk 0:00:11]}  Ng4 {[%clk 0:00:06]} 34. Bd4 {[%clk 0:00:10]}  Qe6 {[%clk 0:00:06]} 35. e5 {[%clk 0:00:08]}  fxe5 {[%clk 0:00:05]} 36. Bb6 {[%clk 0:00:06]}  Rc8 {[%clk 0:00:05]} 37. Qd3 {[%clk 0:00:05]}  Qxb6+ {[%clk 0:00:05]} 38. Kh1 {[%clk 0:00:03]}  Bc6+ {[%clk 0:00:05]} 39. Qd5 {[%clk 0:00:02]}  Bxd5+ {[%clk 0:00:05]} 40. Rxd5 {[%clk 0:00:03]}  Qf2 {[%clk 0:00:05]} 41. Rxe5+ {[%clk 0:00:01]}  Kf7 {[%clk 0:00:05]} 0-1


[Site "https://www.chess.com"]

[Event "Titled Tuesday Blitz March 29 Early 2022"]
[White "Brodowski, Piotr"]
[Black "Vovk, Orest"]
[WhiteFideId "1124480"]
[BlackFideId "14113490"]
[WhiteElo "2422"]
[BlackElo "2203"]
[Result "1-0"]
[Round "08"]
[TimeControl "180+1"]
[Date "2022.03.30"]
[WhiteClock "0:00:08"]
[BlackClock "0:00:01"]

1. e4 {[%clk 0:03:00]}  Nf6 {[%clk 0:02:34]} 2. e5 {[%clk 0:02:51]}  Nd5 {[%clk 0:02:26]} 3. d4 {[%clk 0:02:50]}  d6 {[%clk 0:02:23]} 4. Nf3 {[%clk 0:02:49]}  dxe5 {[%clk 0:02:22]} 5. Nxe5 {[%clk 0:02:49]}  c6 {[%clk 0:02:23]} 6. Be2 {[%clk 0:02:40]}  Bf5 {[%clk 0:02:23]} 7. O-O {[%clk 0:02:39]}  Nd7 {[%clk 0:02:19]} 8. Nf3 {[%clk 0:02:38]}  e6 {[%clk 0:02:13]} 9. a3 {[%clk 0:02:34]}  Be7 {[%clk 0:02:12]} 10. c4 {[%clk 0:02:33]}  Nc7 {[%clk 0:02:10]} 11. Nc3 {[%clk 0:02:32]}  O-O {[%clk 0:02:10]} 12. Bf4 {[%clk 0:02:15]}  Bf6 {[%clk 0:02:09]} 13. h3 {[%clk 0:01:58]}  h6 {[%clk 0:02:09]} 14. Qd2 {[%clk 0:01:52]}  c5 {[%clk 0:02:07]} 15. Rad1 {[%clk 0:01:51]}  Bh7 {[%clk 0:02:02]} 16. dxc5 {[%clk 0:01:45]}  e5 {[%clk 0:01:53]} 17. Bg3 {[%clk 0:01:42]}  Nxc5 {[%clk 0:01:49]} 18. Nxe5 {[%clk 0:01:39]}  Qxd2 {[%clk 0:01:47]} 19. Rxd2 {[%clk 0:01:39]}  N7e6 {[%clk 0:01:44]} 20. Bf3 {[%clk 0:01:37]}  Nb3 {[%clk 0:01:35]} 21. Rd7 {[%clk 0:01:28]}  Nec5 {[%clk 0:01:34]} 22. Rc7 {[%clk 0:01:19]}  Rac8 {[%clk 0:01:33]} 23. Rxc8 {[%clk 0:01:16]}  Rxc8 {[%clk 0:01:34]} 24. Nd5 {[%clk 0:01:16]}  Bd8 {[%clk 0:01:16]} 25. Bg4 {[%clk 0:01:10]}  Ra8 {[%clk 0:01:09]} 26. Re1 {[%clk 0:01:03]}  Ba5 {[%clk 0:01:05]} 27. Re3 {[%clk 0:00:51]}  Bd2 {[%clk 0:01:02]} 28. Rf3 {[%clk 0:00:52]}  f6 {[%clk 0:00:47]} 29. Rxb3 {[%clk 0:00:51]}  Nxb3 {[%clk 0:00:26]} 30. Be6+ {[%clk 0:00:51]}  Kf8 {[%clk 0:00:26]} 31. Nd7+ {[%clk 0:00:47]}  Ke8 {[%clk 0:00:27]} 32. Bd6 {[%clk 0:00:42]}  Rc8 {[%clk 0:00:19]} 33. N7xf6+ {[%clk 0:00:41]}  gxf6 {[%clk 0:00:17]} 34. Bxc8 {[%clk 0:00:41]}  Bd3 {[%clk 0:00:12]} 35. Bxb7 {[%clk 0:00:36]}  Bxc4 {[%clk 0:00:11]} 36. Nxf6+ {[%clk 0:00:37]}  Kf7 {[%clk 0:00:12]} 37. Ne4 {[%clk 0:00:37]}  Bc1 {[%clk 0:00:11]} 38. Be5 {[%clk 0:00:34]}  Bd3 {[%clk 0:00:10]} 39. Ng3 {[%clk 0:00:32]}  Nc5 {[%clk 0:00:08]} 40. Bd5+ {[%clk 0:00:31]}  Kg6 {[%clk 0:00:06]} 41. Bd4 {[%clk 0:00:30]}  Na4 {[%clk 0:00:06]} 42. b3 {[%clk 0:00:26]}  Nb6 {[%clk 0:00:04]} 43. Bxb6 {[%clk 0:00:26]}  axb6 {[%clk 0:00:05]} 44. a4 {[%clk 0:00:24]}  Kf6 {[%clk 0:00:05]} 45. Be4 {[%clk 0:00:22]}  Ba6 {[%clk 0:00:05]} 46. Bf3 {[%clk 0:00:18]}  Ke5 {[%clk 0:00:05]} 47. Ne2 {[%clk 0:00:18]}  Bxe2 {[%clk 0:00:03]} 48. Bxe2 {[%clk 0:00:18]}  Kd4 {[%clk 0:00:04]} 49. Bc4 {[%clk 0:00:18]}  Ke5 {[%clk 0:00:04]} 50. g3 {[%clk 0:00:18]}  Bd2 {[%clk 0:00:04]} 51. Kg2 {[%clk 0:00:19]}  Be1 {[%clk 0:00:04]} 52. f4+ {[%clk 0:00:19]}  Ke4 {[%clk 0:00:04]} 53. Ba6 {[%clk 0:00:17]}  Bd2 {[%clk 0:00:04]} 54. Bb7+ {[%clk 0:00:17]}  Ke3 {[%clk 0:00:04]} 55. h4 {[%clk 0:00:16]}  Bc3 {[%clk 0:00:03]} 56. Kh3 {[%clk 0:00:16]}  Bb4 {[%clk 0:00:03]} 57. Kg4 {[%clk 0:00:16]}  Kf2 {[%clk 0:00:03]} 58. f5 {[%clk 0:00:16]}  Be7 {[%clk 0:00:03]} 59. Bc6 {[%clk 0:00:14]}  Bf6 {[%clk 0:00:03]} 60. b4 {[%clk 0:00:14]}  Bc3 {[%clk 0:00:03]} 61. b5 {[%clk 0:00:13]}  Bf6 {[%clk 0:00:03]} 62. Kh5 {[%clk 0:00:08]}  Kxg3 {[%clk 0:00:01]} 63. Kg6 {[%clk 0:00:08]} 1-0


[Site "https://www.chess.com"]

[Event "Titled Tuesday Blitz March 29 Early 2022"]
[White "Buscar, Michael"]
[Black "Gurevich, Dmitry"]
[WhiteFideId "2603616"]
[BlackFideId "2000407"]
[WhiteElo "2010"]
[BlackElo "2506"]
[Result "1-0"]
[Round "08"]
[TimeControl "180+1"]
[Date "2022.03.30"]
[WhiteClock "0:00:07"]
[BlackClock "0:00:03"]

1. Nf3 {[%clk 0:03:00]}  Nf6 {[%clk 0:02:59]} 2. g3 {[%clk 0:03:00]}  d5 {[%clk 0:02:58]} 3. Bg2 {[%clk 0:02:59]}  c6 {[%clk 0:02:58]} 4. O-O {[%clk 0:02:59]}  Bf5 {[%clk 0:02:57]} 5. c4 {[%clk 0:02:59]}  e6 {[%clk 0:02:52]} 6. cxd5 {[%clk 0:02:58]}  exd5 {[%clk 0:02:51]} 7. d3 {[%clk 0:02:58]}  Be7 {[%clk 0:02:50]} 8. Bf4 {[%clk 0:02:48]}  Nbd7 {[%clk 0:02:42]} 9. Nbd2 {[%clk 0:02:47]}  O-O {[%clk 0:02:41]} 10. Nb3 {[%clk 0:02:46]}  h6 {[%clk 0:02:39]} 11. Nbd4 {[%clk 0:02:46]}  Bh7 {[%clk 0:02:36]} 12. Ne5 {[%clk 0:02:46]}  Nxe5 {[%clk 0:02:34]} 13. Bxe5 {[%clk 0:02:46]}  Nd7 {[%clk 0:02:34]} 14. Bf4 {[%clk 0:02:44]}  Bf6 {[%clk 0:02:33]} 15. Be3 {[%clk 0:02:42]}  Re8 {[%clk 0:02:22]} 16. Rb1 {[%clk 0:02:37]}  a5 {[%clk 0:02:21]} 17. Nb3 {[%clk 0:02:30]}  a4 {[%clk 0:01:57]} 18. Nc5 {[%clk 0:02:09]}  d4 {[%clk 0:01:54]} 19. Nxd7 {[%clk 0:02:09]}  Qxd7 {[%clk 0:01:46]} 20. Bf4 {[%clk 0:02:04]}  Re7 {[%clk 0:01:40]} 21. Bf3 {[%clk 0:02:03]}  g5 {[%clk 0:01:38]} 22. Bd2 {[%clk 0:02:00]}  Bf5 {[%clk 0:01:34]} 23. Bb4 {[%clk 0:01:53]}  Ree8 {[%clk 0:01:29]} 24. Re1 {[%clk 0:01:53]}  g4 {[%clk 0:01:26]} 25. Bg2 {[%clk 0:01:53]}  Qe6 {[%clk 0:01:22]} 26. a3 {[%clk 0:01:42]}  Qd7 {[%clk 0:01:18]} 27. Bd2 {[%clk 0:01:38]}  Kg7 {[%clk 0:01:13]} 28. Qc1 {[%clk 0:01:38]}  h5 {[%clk 0:01:11]} 29. Bh6+ {[%clk 0:01:33]}  Kg6 {[%clk 0:01:08]} 30. Bf4 {[%clk 0:01:31]}  Be5 {[%clk 0:01:00]} 31. Bh6 {[%clk 0:01:15]}  f6 {[%clk 0:00:57]} 32. Qd2 {[%clk 0:01:12]}  Bd6 {[%clk 0:00:53]} 33. Rbc1 {[%clk 0:01:10]}  Re7 {[%clk 0:00:44]} 34. Bf4 {[%clk 0:01:10]}  Qc7 {[%clk 0:00:41]} 35. Bxd6 {[%clk 0:01:03]}  Qxd6 {[%clk 0:00:41]} 36. Rc4 {[%clk 0:01:02]}  Be6 {[%clk 0:00:35]} 37. Rb4 {[%clk 0:00:55]}  Ra7 {[%clk 0:00:30]} 38. Qf4 {[%clk 0:00:41]}  Qxf4 {[%clk 0:00:28]} 39. gxf4 {[%clk 0:00:41]}  Rd7 {[%clk 0:00:21]} 40. Rc1 {[%clk 0:00:38]}  f5 {[%clk 0:00:19]} 41. Rc5 {[%clk 0:00:33]}  Kf6 {[%clk 0:00:18]} 42. Kf1 {[%clk 0:00:20]}  Bb3 {[%clk 0:00:18]} 43. Ke1 {[%clk 0:00:18]}  Ra8 {[%clk 0:00:16]} 44. Kd2 {[%clk 0:00:17]}  Rad8 {[%clk 0:00:15]} 45. Re5 {[%clk 0:00:16]}  Rc7 {[%clk 0:00:11]} 46. Rc5 {[%clk 0:00:15]}  Re7 {[%clk 0:00:11]} 47. Bf1 {[%clk 0:00:12]}  h4 {[%clk 0:00:10]} 48. Rb6 {[%clk 0:00:11]}  Rde8 {[%clk 0:00:07]} 49. Rb4 {[%clk 0:00:10]}  Rd8 {[%clk 0:00:07]} 50. e4 {[%clk 0:00:08]}  dxe3+ {[%clk 0:00:07]} 51. fxe3 {[%clk 0:00:09]}  Rde8 {[%clk 0:00:07]} 52. e4 {[%clk 0:00:07]}  fxe4 {[%clk 0:00:07]} 53. dxe4 {[%clk 0:00:07]}  Rxe4 {[%clk 0:00:07]} 54. Rxb7 {[%clk 0:00:06]}  Rxf4 {[%clk 0:00:05]} 55. Rxc6+ {[%clk 0:00:06]}  Re6 {[%clk 0:00:04]} 56. Rxe6+ {[%clk 0:00:05]}  Kxe6 {[%clk 0:00:04]} 57. Rb6+ {[%clk 0:00:06]}  Kd5 {[%clk 0:00:04]} 58. Ke1 {[%clk 0:00:06]}  Re4+ {[%clk 0:00:03]} 59. Kf2 {[%clk 0:00:06]}  Rf4+ {[%clk 0:00:03]} 60. Kg1 {[%clk 0:00:06]}  Kc5 {[%clk 0:00:03]} 61. Rb5+ {[%clk 0:00:06]}  Kd4 {[%clk 0:00:03]} 62. Rh5 {[%clk 0:00:07]} 1-0


[Site "https://www.chess.com"]

[Event "Titled Tuesday Blitz March 29 Early 2022"]
[White "Chernomordik, Pavel"]
[Black "Grebeniuk, Semen"]
[WhiteFideId "2804530"]
[BlackFideId "14117509"]
[WhiteElo "2249"]
[BlackElo "2234"]
[Result "0-1"]
[Round "08"]
[TimeControl "180+1"]
[Date "2022.03.30"]
[WhiteClock "0:01:20"]
[BlackClock "0:01:40"]

1. e4 {[%clk 0:03:00]}  d5 {[%clk 0:02:59]} 2. exd5 {[%clk 0:03:00]}  Qxd5 {[%clk 0:03:00]} 3. Nc3 {[%clk 0:02:59]}  Qa5 {[%clk 0:03:00]} 4. Bc4 {[%clk 0:02:55]}  Nf6 {[%clk 0:03:01]} 5. Qe2 {[%clk 0:02:53]}  c6 {[%clk 0:02:57]} 6. Nf3 {[%clk 0:02:52]}  Bg4 {[%clk 0:02:56]} 7. Bxf7+ {[%clk 0:02:50]}  Kxf7 {[%clk 0:02:49]} 8. Ne5+ {[%clk 0:02:48]}  Kg8 {[%clk 0:02:37]} 9. Nxg4 {[%clk 0:02:47]}  Qf5 {[%clk 0:02:38]} 10. Ne3 {[%clk 0:02:43]}  Qg6 {[%clk 0:02:31]} 11. Qc4+ {[%clk 0:02:37]}  Qf7 {[%clk 0:02:31]} 12. d3 {[%clk 0:02:34]}  Nbd7 {[%clk 0:02:30]} 13. O-O {[%clk 0:02:33]}  e6 {[%clk 0:02:25]} 14. Re1 {[%clk 0:02:30]}  Re8 {[%clk 0:02:24]} 15. Bd2 {[%clk 0:02:26]}  h5 {[%clk 0:02:24]} 16. Ne4 {[%clk 0:02:22]}  Nb6 {[%clk 0:02:14]} 17. Qb3 {[%clk 0:02:21]}  Nxe4 {[%clk 0:02:12]} 18. dxe4 {[%clk 0:02:19]}  Bd6 {[%clk 0:02:12]} 19. Rad1 {[%clk 0:02:12]}  h4 {[%clk 0:02:06]} 20. Nf1 {[%clk 0:02:01]}  h3 {[%clk 0:02:02]} 21. g3 {[%clk 0:01:58]}  Bc5 {[%clk 0:01:50]} 22. Bf4 {[%clk 0:01:39]}  g5 {[%clk 0:01:43]} 23. Be5 {[%clk 0:01:20]}  Qxf2+ {[%clk 0:01:40]} 0-1


[Site "https://www.chess.com"]

[Event "Titled Tuesday Blitz March 29 Early 2022"]
[White "Coelho, Ramyres Santana"]
[Black "Bashirli, Saadat"]
[WhiteFideId "2120690"]
[BlackFideId "13429990"]
[WhiteElo "1888"]
[BlackElo "1173"]
[Result "1-0"]
[Round "08"]
[TimeControl "180+1"]
[Date "2022.03.30"]
[WhiteClock "0:00:21"]
[BlackClock "0:00:02"]

1. e4 {[%clk 0:03:00]}  c5 {[%clk 0:02:58]} 2. Nf3 {[%clk 0:02:59]}  g6 {[%clk 0:02:56]} 3. d4 {[%clk 0:02:59]}  cxd4 {[%clk 0:02:53]} 4. Nxd4 {[%clk 0:03:00]}  Nc6 {[%clk 0:02:50]} 5. Nc3 {[%clk 0:02:58]}  Bg7 {[%clk 0:02:50]} 6. Be3 {[%clk 0:02:58]}  Nf6 {[%clk 0:02:49]} 7. f3 {[%clk 0:02:57]}  O-O {[%clk 0:02:49]} 8. Bc4 {[%clk 0:02:56]}  Qb6 {[%clk 0:02:39]} 9. Ncb5 {[%clk 0:02:41]}  a6 {[%clk 0:02:35]} 10. Nf5 {[%clk 0:02:32]}  Qa5+ {[%clk 0:02:31]} 11. Bd2 {[%clk 0:02:31]}  Qd8 {[%clk 0:02:28]} 12. Nxg7 {[%clk 0:02:16]}  axb5 {[%clk 0:02:25]} 13. Bxb5 {[%clk 0:02:16]}  Kxg7 {[%clk 0:02:24]} 14. Qc1 {[%clk 0:02:12]}  Kg8 {[%clk 0:02:21]} 15. h4 {[%clk 0:02:10]}  Nd4 {[%clk 0:02:14]} 16. Bd3 {[%clk 0:02:07]}  Qc7 {[%clk 0:02:11]} 17. Kf2 {[%clk 0:01:54]}  d6 {[%clk 0:02:04]} 18. h5 {[%clk 0:01:49]}  Be6 {[%clk 0:02:03]} 19. hxg6 {[%clk 0:01:46]}  fxg6 {[%clk 0:02:01]} 20. Bc3 {[%clk 0:01:39]}  Nc6 {[%clk 0:01:54]} 21. Ke1 {[%clk 0:01:29]}  Rf7 {[%clk 0:01:50]} 22. Qh6 {[%clk 0:01:27]}  Rg7 {[%clk 0:01:28]} 23. Kd2 {[%clk 0:01:22]}  Rd8 {[%clk 0:01:24]} 24. g4 {[%clk 0:01:22]}  g5 {[%clk 0:01:18]} 25. Bxf6 {[%clk 0:01:18]}  exf6 {[%clk 0:01:17]} 26. Qxf6 {[%clk 0:01:19]}  Qf7 {[%clk 0:01:13]} 27. Qh6 {[%clk 0:01:11]}  Qxf3 {[%clk 0:01:08]} 28. Raf1 {[%clk 0:01:10]}  Qxg4 {[%clk 0:01:03]} 29. Rfg1 {[%clk 0:01:02]}  Qf4+ {[%clk 0:00:59]} 30. Ke1 {[%clk 0:00:47]}  Bg4 {[%clk 0:00:46]} 31. Bc4+ {[%clk 0:00:41]}  Kh8 {[%clk 0:00:38]} 32. Rxg4 {[%clk 0:00:36]}  Qxg4 {[%clk 0:00:25]} 33. Bd5 {[%clk 0:00:27]}  Qg3+ {[%clk 0:00:23]} 34. Kd1 {[%clk 0:00:24]}  Qg4+ {[%clk 0:00:14]} 35. Kc1 {[%clk 0:00:23]}  Nd4 {[%clk 0:00:10]} 36. Qf6 {[%clk 0:00:22]}  Qf4+ {[%clk 0:00:09]} 37. Qxf4 {[%clk 0:00:20]}  gxf4 {[%clk 0:00:02]} 38. c3 {[%clk 0:00:21]} 1-0


[Site "https://www.chess.com"]

[Event "Titled Tuesday Blitz March 29 Early 2022"]
[White "Costachi, Mihnea"]
[Black "Guz, Ari"]
[WhiteFideId "1217518"]
[BlackFideId "2825759"]
[WhiteElo "2464"]
[BlackElo "1913"]
[Result "1-0"]
[Round "08"]
[TimeControl "180+1"]
[Date "2022.03.29"]
[WhiteClock "0:00:20"]
[BlackClock "0:00:02"]

1. d4 {[%clk 0:02:59]}  d5 {[%clk 0:02:56]} 2. c4 {[%clk 0:02:58]}  e6 {[%clk 0:02:56]} 3. Nc3 {[%clk 0:02:58]}  a6 {[%clk 0:02:57]} 4. cxd5 {[%clk 0:02:58]}  exd5 {[%clk 0:02:58]} 5. Qb3 {[%clk 0:02:59]}  c6 {[%clk 0:02:57]} 6. e4 {[%clk 0:02:59]}  Nf6 {[%clk 0:02:56]} 7. e5 {[%clk 0:02:58]}  Ng8 {[%clk 0:02:53]} 8. f4 {[%clk 0:02:49]}  Ne7 {[%clk 0:02:53]} 9. Nf3 {[%clk 0:02:49]}  Nf5 {[%clk 0:02:43]} 10. Bd3 {[%clk 0:02:49]}  Be7 {[%clk 0:02:34]} 11. O-O {[%clk 0:02:49]}  h5 {[%clk 0:02:32]} 12. Qc2 {[%clk 0:02:47]}  g6 {[%clk 0:02:29]} 13. Ne2 {[%clk 0:02:42]}  h4 {[%clk 0:02:26]} 14. Bd2 {[%clk 0:02:40]}  Be6 {[%clk 0:02:25]} 15. b4 {[%clk 0:02:40]}  Nd7 {[%clk 0:02:25]} 16. a4 {[%clk 0:02:40]}  Rc8 {[%clk 0:02:23]} 17. a5 {[%clk 0:02:36]}  Kf8 {[%clk 0:02:18]} 18. Qc1 {[%clk 0:02:31]}  Kg7 {[%clk 0:02:16]} 19. Qe1 {[%clk 0:02:32]}  Qf8 {[%clk 0:02:06]} 20. Rb1 {[%clk 0:02:29]}  Rh5 {[%clk 0:01:56]} 21. g4 {[%clk 0:02:29]}  hxg3 {[%clk 0:01:56]} 22. Nxg3 {[%clk 0:02:29]}  Qh8 {[%clk 0:01:50]} 23. Nxh5+ {[%clk 0:02:25]}  Qxh5 {[%clk 0:01:51]} 24. Qf2 {[%clk 0:02:23]}  Rh8 {[%clk 0:01:48]} 25. Qg2 {[%clk 0:02:23]}  Kf8 {[%clk 0:01:40]} 26. Rf2 {[%clk 0:02:21]}  Ke8 {[%clk 0:01:38]} 27. Kf1 {[%clk 0:02:20]}  Ne3+ {[%clk 0:01:16]} 28. Bxe3 {[%clk 0:02:19]}  Bh3 {[%clk 0:01:17]} 29. Ke2 {[%clk 0:02:16]}  Bxg2 {[%clk 0:01:17]} 30. Rxg2 {[%clk 0:02:17]}  Nf8 {[%clk 0:01:17]} 31. Rg3 {[%clk 0:02:02]}  Ne6 {[%clk 0:01:15]} 32. Kd2 {[%clk 0:02:02]}  Qh7 {[%clk 0:00:56]} 33. Kc3 {[%clk 0:02:01]}  Kd7 {[%clk 0:00:54]} 34. Rf1 {[%clk 0:01:58]}  Qh6 {[%clk 0:00:51]} 35. h4 {[%clk 0:01:50]}  Qf8 {[%clk 0:00:51]} 36. f5 {[%clk 0:01:48]}  gxf5 {[%clk 0:00:46]} 37. Bxf5 {[%clk 0:01:44]}  Bxb4+ {[%clk 0:00:46]} 38. Kc2 {[%clk 0:01:41]}  Bxa5 {[%clk 0:00:42]} 39. Ng5 {[%clk 0:01:40]}  Qa3 {[%clk 0:00:38]} 40. Bxe6+ {[%clk 0:01:33]}  fxe6 {[%clk 0:00:37]} 41. Rf7+ {[%clk 0:01:34]}  Kc8 {[%clk 0:00:36]} 42. Nxe6 {[%clk 0:01:28]}  Qc3+ {[%clk 0:00:34]} 43. Kb1 {[%clk 0:01:26]}  Qd3+ {[%clk 0:00:23]} 44. Kc1 {[%clk 0:01:18]}  Bd2+ {[%clk 0:00:20]} 45. Bxd2 {[%clk 0:01:19]}  Qxg3 {[%clk 0:00:20]} 46. Bg5 {[%clk 0:01:19]}  Qg4 {[%clk 0:00:17]} 47. Rc7+ {[%clk 0:01:11]}  Kb8 {[%clk 0:00:17]} 48. Re7 {[%clk 0:01:12]}  a5 {[%clk 0:00:16]} 49. Kb2 {[%clk 0:01:04]}  Qh3 {[%clk 0:00:15]} 50. Nc5 {[%clk 0:01:03]}  b6 {[%clk 0:00:12]} 51. Nd7+ {[%clk 0:00:56]}  Kc7 {[%clk 0:00:07]} 52. Nf8+ {[%clk 0:00:50]}  Kd8 {[%clk 0:00:07]} 53. Rh7+ {[%clk 0:00:42]}  Ke8 {[%clk 0:00:07]} 54. Rxh8 {[%clk 0:00:42]}  Qg2+ {[%clk 0:00:08]} 55. Kb1 {[%clk 0:00:37]}  Qf1+ {[%clk 0:00:08]} 56. Kc2 {[%clk 0:00:35]}  Qe2+ {[%clk 0:00:08]} 57. Bd2 {[%clk 0:00:36]}  Qc4+ {[%clk 0:00:09]} 58. Kd1 {[%clk 0:00:36]}  Qf1+ {[%clk 0:00:09]} 59. Be1 {[%clk 0:00:36]}  Qd3+ {[%clk 0:00:09]} 60. Kc1 {[%clk 0:00:36]}  Qc4+ {[%clk 0:00:08]} 61. Kb1 {[%clk 0:00:33]}  Qb3+ {[%clk 0:00:08]} 62. Kc1 {[%clk 0:00:33]}  Qa3+ {[%clk 0:00:08]} 63. Kd2 {[%clk 0:00:33]}  Qb4+ {[%clk 0:00:08]} 64. Ke2 {[%clk 0:00:32]}  Qb2+ {[%clk 0:00:07]} 65. Bd2 {[%clk 0:00:31]}  Qc2 {[%clk 0:00:06]} 66. Ng6+ {[%clk 0:00:30]}  Kf7 {[%clk 0:00:06]} 67. Nf4 {[%clk 0:00:28]}  a4 {[%clk 0:00:06]} 68. Ra8 {[%clk 0:00:27]}  Qe4+ {[%clk 0:00:05]} 69. Be3 {[%clk 0:00:26]}  Qc2+ {[%clk 0:00:04]} 70. Bd2 {[%clk 0:00:26]}  Qe4+ {[%clk 0:00:04]} 71. Kf2 {[%clk 0:00:25]}  b5 {[%clk 0:00:05]} 72. Ra7+ {[%clk 0:00:24]}  Ke8 {[%clk 0:00:05]} 73. e6 {[%clk 0:00:24]}  Qxd4+ {[%clk 0:00:05]} 74. Be3 {[%clk 0:00:24]}  Qb2+ {[%clk 0:00:05]} 75. Kg3 {[%clk 0:00:22]}  d4 {[%clk 0:00:04]} 76. Ng6 {[%clk 0:00:21]}  Kd8 {[%clk 0:00:01]} 77. e7+ {[%clk 0:00:20]}  Ke8 {[%clk 0:00:02]} 1-0


[Site "https://www.chess.com"]

[Event "Titled Tuesday Blitz March 29 Early 2022"]
[White "De Souza, Cristiano Gomes"]
[Black "Silva, Mariana Sofia T."]
[WhiteFideId "2151758"]
[BlackFideId "1911899"]
[WhiteElo "2068"]
[BlackElo "1825"]
[Result "1-0"]
[Round "08"]
[TimeControl "180+1"]
[Date "2022.03.30"]
[WhiteClock "0:01:08"]
[BlackClock "0:00:05"]

1. d4 {[%clk 0:03:00]}  Nf6 {[%clk 0:02:59]} 2. c4 {[%clk 0:03:00]}  e6 {[%clk 0:02:59]} 3. Nf3 {[%clk 0:02:58]}  Bb4+ {[%clk 0:02:58]} 4. Bd2 {[%clk 0:02:58]}  Qe7 {[%clk 0:02:57]} 5. Nc3 {[%clk 0:02:55]}  b6 {[%clk 0:02:43]} 6. g3 {[%clk 0:02:53]}  Bb7 {[%clk 0:02:43]} 7. Bg2 {[%clk 0:02:54]}  O-O {[%clk 0:02:43]} 8. O-O {[%clk 0:02:52]}  d5 {[%clk 0:02:39]} 9. Ne5 {[%clk 0:02:49]}  Nbd7 {[%clk 0:02:30]} 10. Nxd7 {[%clk 0:02:47]}  Qxd7 {[%clk 0:02:27]} 11. cxd5 {[%clk 0:02:46]}  Bxd5 {[%clk 0:01:45]} 12. Nxd5 {[%clk 0:02:42]}  Nxd5 {[%clk 0:01:45]} 13. Bxd5 {[%clk 0:02:33]}  Qxd5 {[%clk 0:01:07]} 14. Bxb4 {[%clk 0:02:32]}  Rfd8 {[%clk 0:01:06]} 15. Bc3 {[%clk 0:02:32]}  a5 {[%clk 0:01:04]} 16. Qd3 {[%clk 0:02:30]}  b5 {[%clk 0:01:02]} 17. e4 {[%clk 0:02:29]}  Qh5 {[%clk 0:00:59]} 18. a3 {[%clk 0:02:26]}  c5 {[%clk 0:00:56]} 19. Qxb5 {[%clk 0:02:23]}  Qf3 {[%clk 0:00:42]} 20. Qxc5 {[%clk 0:02:14]}  Qxe4 {[%clk 0:00:40]} 21. Rae1 {[%clk 0:02:10]}  Qg6 {[%clk 0:00:37]} 22. Qe5 {[%clk 0:02:00]}  Rd5 {[%clk 0:00:33]} 23. Qe4 {[%clk 0:01:59]}  Qh6 {[%clk 0:00:22]} 24. Re3 {[%clk 0:01:52]}  Rad8 {[%clk 0:00:19]} 25. Rfe1 {[%clk 0:01:48]}  Rh5 {[%clk 0:00:17]} 26. Qg2 {[%clk 0:01:43]}  Rdd5 {[%clk 0:00:12]} 27. Re5 {[%clk 0:01:39]}  Rdxe5 {[%clk 0:00:10]} 28. Rxe5 {[%clk 0:01:31]}  f5 {[%clk 0:00:10]} 29. Qa8+ {[%clk 0:01:22]}  Kf7 {[%clk 0:00:09]} 30. Qb7+ {[%clk 0:01:17]}  Kf6 {[%clk 0:00:09]} 31. d5 {[%clk 0:01:13]}  exd5 {[%clk 0:00:06]} 32. Qe7+ {[%clk 0:01:10]}  Kg6 {[%clk 0:00:05]} 33. Re6# {[%clk 0:01:08]} 1-0


[Site "https://www.chess.com"]